bitfinex/quotes_ETHUSD_20250801
["timestamp","ask_amount","ask_price","bid_price","bid_amount"]
[1754072211253,6.763,3548.3,3547.6,3.00000001]
[1754072211426,0.55,3548.0,3547.6,1e-08]
[1754072211625,0.55,3547.8,3547.6,1e-08]
[1754072211866,0.55,3547.7,3547.6,1e-08]
[1754072212032,0.58523409,3547.7,3547.6,1e-08]
[1754072212538,0.55,3547.7,3547.6,1e-08]
[1754072212745,4.46230171,3547.7,3547.6,1e-08]
[1754072213069,0.55,3547.7,3547.6,1e-08]
[1754072213227,1.04963409,3547.7,3547.6,1e-08]
[1754072213636,1.04963409,3547.7,3547.0,3.0]
[1754072213637,0.55,3547.6,3546.9,1.63132493]
[1754072213835,11.78925572,3547.0,3546.9,1e-08]
[1754072214078,18.29702202,3547.0,3546.9,1e-08]
[1754072214375,0.55,3546.6,3545.0,3.2467]
[1754072214581,3.3707949,3545.1,3545.0,3.2467]
[1754072214926,8.3207949,3545.1,3545.0,3.2467]
[1754072215480,5.5,3545.1,3545.0,3.2467]
[1754072215983,8.3177949,3545.1,3545.0,3.2467]
[1754072216140,12.58343908,3545.1,3545.0,3.2467]
[1754072216463,12.58343908,3545.1,3543.0,0.03]
[1754072216464,37.37372212,3542.0,3541.4,6.77]
[1754072216664,37.37372212,3542.0,3541.9,2.8233434]
[1754072217635,33.55469121,3542.0,3541.9,2.8233434]
[1754072217866,31.89159872,3542.0,3541.9,6.58864817]
[1754072218036,4.956,3543.1,3542.0,3.0]
[1754072218237,4.956,3543.1,3541.9,0.76530477]
[1754072218480,0.03528083,3543.0,3541.7,2.4668]
[1754072218689,4.956,3543.1,3541.7,2.4668]
[1754072218690,0.03528183,3542.9,3541.7,2.0]
[1754072218892,0.03528282,3542.8,3541.7,2.0]
[1754072219077,1.6874,3543.1,3541.8,2.82342311]
[1754072219399,5.1398,3543.1,3542.6,0.1408]
[1754072219605,5.005,3543.5,3543.0,0.1408]
[1754072219771,5.005,3543.5,3541.9,0.4668]
[1754072219772,2.85744073,3543.4,3541.1,1.5]
[1754072219952,5.005,3543.5,3541.8,1.7452]
[1754072220157,0.00263239,3543.0,3541.8,5.212]
[1754072220369,0.00263239,3543.0,3541.7,2.0]
[1754072220370,0.00263239,3543.0,3542.0,2.82326369]
[1754072220570,0.847673,3543.8,3543.7,13.7951093]
[1754072220796,0.847673,3543.8,3543.7,8.0339093]
[1754072221007,0.843673,3543.8,3543.7,8.0339093]
[1754072221172,0.843673,3543.8,3543.7,2.212]
[1754072221353,5.069,3545.2,3542.1,0.50352637]
[1754072221354,0.4644,3545.1,3543.0,4.7452]
[1754072221560,0.4644,3544.8,3543.7,2.82190357]
[1754072221755,2.82182736,3543.9,3541.8,0.14667505]
[1754072222057,2.82182736,3543.9,3540.2,3.13712953]
[1754072222058,5.10427287,3543.8,3542.2,1.7452]
[1754072222266,5.107,3543.7,3542.3,0.4668]
[1754072222468,0.03526491,3544.6,3542.9,9.87153]
[1754072222704,10.847286,3545.2,3543.1,5.322]
[1754072222912,10.847286,3545.2,3543.2,2.212]
[1754072223056,1.252111,3545.1,3544.1,2.82156073]
[1754072223251,5.5934,3545.0,3543.3,0.7341]
[1754072223451,5.5934,3545.0,3543.2,1.7452]
[1754072223452,0.03526192,3544.9,3543.2,1.7452]
[1754072223658,5.131,3544.8,3543.2,1.7452]
[1754072223962,5.16426391,3544.7,3543.3,0.4668]
[1754072224277,0.03526491,3544.6,3541.6,0.00620223]
[1754072224488,0.49966491,3544.6,3543.1,3.0]
[1754072224801,5.129,3544.7,3543.2,0.7668]
[1754072224957,5.121,3544.5,3543.6,3.0]
[1754072225156,5.121,3544.5,3544.0,2.82166626]
[1754072225460,2.69916689,3544.4,3541.7,2.0]
[1754072225695,5.1518,3544.3,3541.7,2.0]
[1754072225865,2.8219093,3543.7,3541.7,2.0]
[1754072226068,3.0,3543.4,3541.7,2.0]
[1754072226279,3.0,3543.2,3541.7,2.0]
[1754072226499,2.82246683,3543.0,3541.7,2.0]
[1754072226712,5.444,3542.9,3541.7,2.0]
[1754072227070,0.03528282,3542.8,3541.7,2.0]
[1754072227274,0.4644,3542.7,3541.7,2.0]
[1754072227610,7.2414,3543.3,3541.7,2.0]
[1754072227816,7.2414,3543.3,3541.8,0.20062022]
[1754072227817,5.48027884,3543.2,3541.8,0.20062022]
[1754072228112,3.0,3543.1,3541.7,2.0]
[1754072228278,2.1518,3543.2,3541.7,2.0]
[1754072228478,5.444,3543.0,3541.7,2.0]
[1754072228675,2.82301314,3542.4,3541.7,2.0]
[1754072229014,5.445,3542.3,3541.7,2.0]
[1754072229509,10.0,3543.5,3541.8,2.212]
[1754072229709,5.436,3542.9,3542.2,0.1408]
[1754072229954,0.03528282,3542.8,3541.7,2.0]
[1754072230111,0.03528382,3542.7,3542.1,0.1408]
[1754072230312,0.4644,3542.6,3542.1,0.1408]
[1754072230535,2.82310428,3542.2,3542.1,0.1408]
[1754072230821,7.6138,3542.2,3542.1,0.1408]
[1754072231018,7.7546,3542.2,3541.7,2.0]
[1754072231201,0.1408,3542.1,3541.7,2.0]
[1754072231373,0.4644,3542.0,3541.7,2.0]
[1754072231715,0.17608979,3542.1,3541.7,2.0]
[1754072231716,2.82342311,3541.8,3541.7,1e-08]
[1754072232076,5.01051589,3541.8,3541.7,1e-08]
[1754072232378,10.44322311,3541.8,3541.7,1e-08]
[1754072234000,2.82350283,3541.7,3541.6,0.00620223]
[1754072234201,7.46159582,3541.7,3541.6,0.00620223]
[1754072234426,2.82374202,3541.4,3540.4,5.0]
[1754072234587,5.83303879,3541.4,3540.4,5.0]
[1754072234956,2.82398124,3541.1,3541.0,0.004]
[1754072235241,2.82398124,3541.1,3540.4,5.0]
[1754072235242,2.82445982,3540.5,3540.4,5.0]
[1754072235391,10.58245982,3540.5,3540.4,5.0]
[1754072235591,10.0,3541.4,3540.4,8.32461052]
[1754072235791,5.49929777,3541.3,3540.4,5.500096]
[1754072235991,5.464,3541.3,3540.5,2.82445896]
[1754072236194,10.0,3542.3,3540.6,3.27631409]
[1754072236502,10.0,3542.3,3540.5,4.7791]
[1754072236503,15.471,3542.3,3540.9,3.0]
[1754072236703,8.41997182,3543.2,3540.4,5.500096]
[1754072236704,2.82237689,3543.2,3542.3,3.0]
[1754072236904,6.783,3543.4,3542.1,2.82318398]
[1754072237118,6.783,3543.4,3542.0,0.452]
[1754072237290,5.468,3543.3,3542.2,1.7791]
[1754072237517,10.0,3544.2,3542.6,14.21453552]
[1754072237713,10.0,3544.2,3544.1,2.82159081]
[1754072237912,5.47,3544.9,3544.2,3.0]
[1754072238208,5.50626292,3544.8,3544.1,2.2311]
[1754072238447,5.471,3544.8,3544.0,3.0]
[1754072238732,5.471,3544.8,3544.3,3.0]
[1754072238931,5.472,3545.1,3543.7,0.452]
[1754072239160,0.4561,3545.7,3543.7,0.452]
[1754072239161,5.47,3545.0,3543.7,0.452]
[1754072239361,9.60306601,3546.1,3543.4,1.7791]
[1754072239362,6.783,3546.1,3543.4,1.7791]
[1754072239572,1.8409,3545.3,3542.8,1.7791]
[1754072239740,0.001,3544.6,3542.8,1.7791]
[1754072240047,0.001,3544.6,3542.5,0.454]
[1754072240048,2.8222356,3543.3,3542.5,0.002]
[1754072240232,5.51327884,3543.2,3542.5,0.002]
[1754072240433,2.82223857,3543.3,3542.5,0.002]
[1754072240646,0.03527884,3543.2,3542.5,0.002]
[1754072240846,2.82272302,3542.7,3542.5,0.002]
[1754072241048,5.475,3542.7,3542.5,0.002]
[1754072241230,0.03528481,3542.6,3542.5,0.002]
[1754072241666,1.8409,3543.3,3542.5,0.002]
[1754072241667,0.4561,3543.8,3542.5,0.002]
[1754072241868,0.31997386,3543.7,3542.5,0.002]
[1754072242030,0.1408,3543.0,3542.5,0.1428]
[1754072242236,5.6168,3543.0,3542.6,5.05384465]
[1754072242584,0.1408,3543.0,3542.7,2.2311]
[1754072242736,5.476,3543.0,3542.5,0.002]
[1754072243074,6.781,3544.1,3542.6,5.2311]
[1754072243274,8.29589044,3543.8,3542.9,0.1408]
[1754072243446,8.29589044,3543.8,3542.5,0.58450997]
[1754072243447,2.82206578,3543.6,3542.5,0.002]
[1754072243775,5.474,3543.8,3542.9,0.1408]
[1754072243776,0.1408,3543.4,3542.9,0.1408]
[1754072244078,0.1408,3543.4,3542.5,2.82484225]
[1754072244079,3.51358552,3542.6,3542.5,1e-08]
[1754072244239,9.6624971,3542.6,3542.5,1e-08]
[1754072244438,11.92421229,3542.6,3542.5,1e-08]
[1754072244783,0.1408,3542.6,3542.5,1e-08]
[1754072245035,8.47887033,3542.6,3542.5,1e-08]
[1754072245182,0.1408,3542.6,3542.5,1e-08]
[1754072245497,8.29678552,3542.6,3542.5,1e-08]
[1754072245678,8.98758552,3542.6,3542.5,1e-08]
[1754072245842,5.474,3542.6,3542.5,1e-08]
[1754072246043,8.29378552,3542.6,3542.5,1e-08]
[1754072246268,8.29278552,3542.6,3542.5,1e-08]
[1754072246474,11.13978552,3542.6,3542.5,1e-08]
[1754072246842,11.13978552,3542.6,3542.1,1e-08]
[1754072246843,3.37310428,3542.2,3542.1,1e-08]
[1754072247042,0.55,3542.1,3540.1,0.00096]
[1754072247248,0.1408,3541.1,3540.6,0.1416]
[1754072247545,2.82469916,3540.2,3540.1,0.00096]
[1754072247778,8.30069916,3540.2,3540.1,0.00096]
[1754072248039,5.476,3540.2,3540.1,0.14256]
[1754072248268,5.478,3540.2,3540.1,0.14256]
[1754072248464,2.297,3541.6,3540.1,2.79744894]
[1754072248678,10.0,3541.9,3540.4,2.82447841]
[1754072248880,0.1408,3541.7,3541.2,2.9646983]
[1754072249051,10.0,3541.9,3540.1,0.42474894]
[1754072249052,5.477,3541.9,3541.8,0.1408]
[1754072249257,6.782,3542.2,3541.7,2.82349444]
[1754072249457,5.475,3542.2,3537.5,1.46093653]
[1754072249643,2.33228979,3542.1,3540.1,0.00096]
[1754072249846,2.82394867,3541.2,3540.4,0.1416]
[1754072250045,5.57129976,3541.1,3540.1,0.00096]
[1754072250278,0.55,3540.7,3540.1,0.00096]
[1754072250478,0.03530475,3540.6,3540.3,0.1416]
[1754072250681,3.00135618,3540.6,3540.1,0.14256]
[1754072250881,3.00129347,3540.6,3540.1,0.14256]
[1754072251087,3.00130123,3540.6,3540.1,0.00096]
[1754072251381,2.82469916,3540.2,3540.1,0.00096]
[1754072251686,0.1416,3540.2,3540.1,0.00096]
[1754072251980,7.825,3540.5,3540.1,0.00096]
[1754072251981,0.1416,3540.3,3540.1,0.00096]
[1754072252282,2.8245396,3540.4,3540.1,0.14256]
[1754072252488,5.528,3540.5,3540.1,0.00096]
[1754072252696,2.297,3541.7,3540.1,0.42474894]
[1754072252990,2.82445205,3540.6,3540.1,0.00096]
[1754072253288,2.85927459,3541.2,3540.2,2.82468924]
[1754072253444,2.85927459,3541.2,3540.1,0.00096]
[1754072253445,5.518,3541.4,3540.1,0.00096]
[1754072253649,5.518,3541.4,3540.8,2.82421565]
[1754072253977,5.518,3541.4,3540.5,0.452]
[1754072254160,5.518,3541.4,3540.6,2.8243639]
[1754072254161,0.03529777,3541.3,3540.6,2.8243639]
[1754072254366,5.518,3541.4,3540.8,2.82420726]
[1754072254562,5.9691,3542.1,3540.7,2.10673639]
[1754072254761,5.513,3542.1,3540.7,2.10673639]
[1754072255111,0.4561,3542.6,3540.9,2.82414075]
[1754072255112,0.03529079,3542.0,3540.9,2.82414075]
[1754072255299,5.509,3542.6,3541.9,2.82331313]
[1754072255450,0.03528581,3542.5,3541.4,2.82367396]
[1754072255654,0.03528581,3542.5,3541.5,3.10602676]
[1754072255857,0.03528581,3542.5,3541.6,2.82358256]
[1754072256066,0.03528581,3542.5,3541.0,2.2311]
[1754072256271,2.82312489,3542.2,3541.2,2.82387956]
[1754072256491,5.502,3542.4,3541.0,2.2311]
[1754072256695,0.0352878,3542.3,3541.1,0.22311]
[1754072256896,2.82313228,3542.2,3541.1,0.22311]
[1754072257094,0.0352878,3542.3,3541.1,3.04708288]
[1754072257095,2.8232968,3542.0,3541.1,3.04708288]
[1754072257313,0.03529179,3541.9,3541.1,0.22311]
[1754072257518,0.0352888,3542.2,3541.1,0.22311]
[1754072257702,0.4561,3542.8,3541.2,0.245421]
[1754072258020,5.492,3542.7,3541.3,2.2311]
[1754072258203,5.489,3542.6,3541.3,2.2311]
[1754072258511,2.82312602,3542.2,3541.3,2.2311]
[1754072258686,1.8409,3542.8,3541.3,1.7791]
[1754072258888,8.30575756,3542.7,3541.4,0.2024521]
[1754072259094,5.483,3542.7,3541.4,0.2024521]
[1754072259290,5.483,3542.7,3542.0,2.82320902]
[1754072259478,5.483,3542.7,3541.4,3.02615706]
[1754072259703,5.483,3542.7,3542.4,2.82288648]
[1754072259920,2.82202613,3543.6,3542.0,0.452]
[1754072259921,5.476,3543.6,3542.0,0.452]
[1754072260219,5.476,3543.6,3541.8,1.7791]
[1754072260220,1.87617585,3543.5,3541.8,1.7791]
[1754072260526,5.476,3543.6,3541.9,3.27529123]
[1754072260729,5.476,3543.6,3542.0,2.73653912]
[1754072260880,5.9361,3544.3,3542.3,3.0]
[1754072261085,2.82161361,3544.1,3542.5,2.8228652]
[1754072261389,0.03526889,3544.2,3542.6,2.2311]
[1754072261594,5.479,3544.2,3544.0,2.82166332]
[1754072261818,0.97806212,3544.5,3544.4,2.82135199]
[1754072262004,0.001,3544.6,3544.5,5.82127239]
[1754072262318,0.001,3544.6,3544.5,4.60037239]
[1754072262490,0.001,3544.6,3544.5,5.05237239]
[1754072262676,2.81983975,3546.4,3544.5,5.05237239]
[1754072262677,1.8409,3546.8,3544.9,2.82090726]
[1754072262881,5.473,3547.0,3545.1,5.82078946]
[1754072263095,0.001,3548.1,3545.3,2.82063577]
[1754072263330,1.8409,3547.9,3547.0,2.8192079]
[1754072263534,0.0352331,3547.8,3546.5,0.452]
[1754072263684,5.473,3547.7,3546.5,0.452]
[1754072263910,2.57581331,3547.6,3546.5,2.81967385]
[1754072264108,0.001,3548.1,3546.7,2.81952237]
[1754072264401,0.001,3548.1,3546.7,5.49833]
[1754072264626,0.001,3548.1,3546.8,3.452]
[1754072264830,0.001,3548.1,3548.0,2.81848928]
[1754072265434,0.001,3548.1,3548.0,5.06868928]
[1754072265616,0.001,3548.1,3548.0,5.85741868]
[1754072265959,1e-08,3548.5,3548.4,2.81817157]
[1754072266471,2.81599818,3551.2,3548.5,3.0]
[1754072266750,1.9841,3552.4,3549.7,6.2893]
[1754072267045,5.51397795,3552.3,3551.0,2.81610154]
[1754072267251,1.9841,3552.2,3550.0,0.02816901]
[1754072267415,1.9841,3552.2,3548.6,3.41796244]
[1754072267416,8.41997182,3551.3,3550.2,2.81670114]
[1754072267615,7.97267795,3551.2,3549.1,2.2602]
[1754072267834,1.67424293,3551.1,3549.4,2.81737758]
[1754072268004,7.9377,3551.2,3549.2,0.52602]
[1754072268204,1.9841,3551.2,3550.6,2.81641319]
[1754072268418,2.81478591,3552.7,3550.3,2.81663303]
[1754072268419,5.482,3551.5,3550.3,1.7982]
[1754072268620,2.49267795,3551.4,3549.5,0.462]
[1754072268818,7.75034575,3551.3,3549.5,0.462]
[1754072269143,7.75034575,3551.3,3548.9,1.7982]
[1754072269144,2.81640692,3550.7,3548.9,2.2602]
[1754072269307,0.55,3550.5,3548.8,2.81780275]
[1754072269502,2.01907795,3550.4,3548.9,2.81771279]
[1754072269702,0.55,3550.2,3547.9,0.462]
[1754072269903,3.36690837,3550.0,3547.9,0.462]
[1754072270149,4.13998293,3550.1,3547.9,0.462]
[1754072270150,1.9841,3549.9,3548.1,2.81840985]
[1754072270353,1.9841,3550.4,3548.4,15.83985957]
[1754072270662,11.9841,3552.2,3549.4,3.0]
[1754072270953,11.9841,3552.2,3550.3,2.81666338]
[1754072270954,5.483,3551.6,3550.3,2.81666338]
[1754072271103,0.5483,3551.5,3551.4,2.81579095]
[1754072271304,1.9841,3552.2,3550.4,3.0]
[1754072271503,5.479,3552.2,3551.8,2.81539892]
[1754072271731,5.479,3552.2,3552.1,2.81523605]
[1754072271949,5.477,3552.2,3552.1,2.81523605]
[1754072272149,6.774,3552.5,3551.0,2.2602]
[1754072272357,5.476,3552.2,3552.1,2.81523605]
[1754072272670,5.476,3552.2,3551.1,2.81601319]
[1754072272813,0.03497795,3552.1,3551.0,2.2602]
[1754072273004,0.17577795,3552.1,3551.6,0.1408]
[1754072273212,2.5492778,3552.0,3551.6,0.1408]
[1754072273424,2.4577,3551.9,3550.6,2.81642539]
[1754072273764,0.55,3551.8,3549.9,2.2602]
[1754072274068,5.459,3551.7,3550.0,1.7982]
[1754072274242,0.55,3551.5,3550.0,0.462]
[1754072274412,2.95667024,3551.3,3550.7,0.1408]
[1754072274612,5.46,3551.2,3549.5,0.462]
[1754072274854,5.46,3551.2,3551.0,0.1408]
[1754072275159,2.5301,3551.2,3551.0,0.1408]
[1754072275339,5.455,3551.1,3551.0,0.1408]
[1754072275545,7.9127,3551.1,3548.9,0.462]
[1754072275739,0.1408,3550.7,3550.2,0.1408]
[1754072276056,2.81650471,3550.5,3548.9,0.462]
[1754072276237,0.03497795,3550.4,3550.0,0.1408]
[1754072276445,2.81682206,3550.1,3549.0,2.81761771]
[1754072276732,2.15987795,3550.0,3548.4,0.462]
[1754072277043,2.81713947,3549.7,3549.1,0.1408]
[1754072277218,2.81729821,3549.5,3549.1,0.1408]
[1754072277422,2.15987795,3549.4,3548.9,0.1408]
[1754072277615,0.03497795,3549.3,3548.9,0.1408]
[1754072277946,0.1408,3549.4,3548.9,0.1408]
[1754072278270,0.1408,3549.4,3549.3,2.81745696]
[1754072278468,5.434,3549.9,3549.3,0.1408]
[1754072278747,5.431,3550.0,3549.3,2.95822346]
[1754072278911,5.431,3550.2,3549.1,0.462]
[1754072279113,5.431,3550.2,3549.9,0.1408]
[1754072279351,2.81573074,3551.5,3548.8,1.7982]
[1754072279352,5.429,3551.1,3550.1,0.1408]
[1754072279537,2.1249,3550.8,3550.1,0.1408]
[1754072279736,2.81652803,3550.5,3550.0,0.1408]
[1754072279910,2.85162884,3550.4,3550.0,0.1408]
[1754072280282,2.81694771,3550.0,3549.1,2.81759743]
[1754072280409,0.03497795,3549.9,3549.5,0.1408]
[1754072280610,5.419,3550.7,3549.6,0.462]
[1754072280813,0.83438557,3551.7,3549.7,2.84531086]
[1754072281053,5.421,3551.6,3549.8,5.2602]
[1754072281224,5.421,3551.6,3549.9,0.462]
[1754072281424,5.421,3551.6,3550.7,2.81632381]
[1754072281624,0.03497795,3551.5,3549.9,9.806634]
[1754072281840,6.769,3551.9,3549.6,0.32793256]
[1754072281841,1.9841,3552.2,3550.1,19.117328]
[1754072282021,5.415,3552.1,3550.6,3.0]
[1754072282222,5.415,3552.0,3550.7,0.02816346]
[1754072282551,6.769,3553.2,3550.5,0.462]
[1754072282552,1.9841,3553.0,3551.2,2.81594907]
[1754072282751,6.769,3553.2,3551.7,2.81555311]
[1754072282990,5.412,3553.4,3552.0,5.81531531]
[1754072283281,5.412,3553.4,3552.1,2.2602]
[1754072283484,5.412,3553.4,3552.3,3.0]
[1754072283687,1.9841,3554.0,3552.4,2.2602]
[1754072283845,1.9841,3554.0,3553.6,2.8140218]
[1754072283846,5.409,3553.8,3553.6,2.8140218]
[1754072284042,1.9841,3553.7,3552.6,2.81483983]
[1754072284483,0.03497795,3553.6,3552.3,3.0]
[1754072284804,1.9841,3553.7,3552.9,2.81458011]
[1754072285101,1.9841,3553.7,3553.1,2.81440885]
[1754072285245,2.81318037,3554.7,3552.1,3.0]
[1754072285246,1.9841,3554.3,3552.5,2.81491907]
[1754072285447,5.395,3554.2,3553.0,0.462]
[1754072285795,5.395,3554.2,3552.9,1.7982]
[1754072285796,2.81391568,3553.8,3552.9,2.81459119]
[1754072286010,5.394,3553.7,3552.5,3.0]
[1754072286152,5.394,3553.7,3552.4,2.2602]
[1754072286483,2.81412691,3553.5,3551.8,0.462]
[1754072286699,1.10505844,3553.4,3551.6,2.81556045]
[1754072286903,10.23135366,3553.4,3552.4,2.81493184]
[1754072287100,1.9841,3553.4,3552.7,2.81474747]
[1754072287305,0.55,3553.2,3550.9,6.769]
[1754072287598,0.55,3553.0,3550.9,0.462]
[1754072287900,5.392,3552.9,3552.3,2.81500589]
[1754072288115,5.389,3552.8,3552.3,2.81504182]
[1754072288324,5.389,3552.8,3551.2,2.81594953]
[1754072288325,2.01907795,3552.7,3550.9,1.7982]
[1754072288465,0.55,3552.5,3551.0,0.462]
[1754072288668,2.01907795,3552.4,3551.0,0.462]
[1754072288861,1.0236,3552.3,3550.5,0.462]
[1754072289065,2.81696779,3552.2,3551.4,2.81573499]
[1754072289303,5.385,3552.1,3550.5,5.07670446]
[1754072289621,5.385,3552.1,3551.3,2.81585395]
[1754072289776,5.385,3552.1,3551.4,2.81571452]
[1754072289963,5.379,3552.4,3552.2,2.81509772]
[1754072290165,1.9841,3553.9,3552.3,5.2602]
[1754072290391,6.765,3554.0,3553.9,2.81381018]
[1754072290594,5.381,3554.3,3553.1,0.462]
[1754072290814,5.381,3554.3,3554.2,2.81357267]
[1754072291124,0.1408,3554.9,3554.8,2.81309778]
[1754072291302,5.5188,3555.4,3554.4,3.0]
[1754072291464,5.5188,3555.4,3554.8,0.1408]
[1754072291465,0.75029,3555.3,3554.8,0.1408]
[1754072291805,2.4577,3555.2,3554.8,0.1408]
[1754072291990,1.9841,3555.1,3554.8,0.1408]
[1754072292177,0.03497795,3555.0,3554.8,0.1408]
[1754072292529,0.03497795,3555.0,3553.7,0.462]
[1754072292530,0.001,3553.8,3553.7,5.81396853]
[1754072292679,0.001,3553.8,3553.7,8.07416853]
[1754072292861,5.372,3555.5,3554.3,3.0]
[1754072293162,5.372,3555.5,3554.4,2.28833414]
[1754072293362,1.9841,3556.1,3554.5,28.08404135]
[1754072293663,2.49267795,3556.0,3553.9,1.7982]
[1754072293870,0.1,3555.2,3554.0,3.0]
[1754072294189,0.1,3554.4,3553.9,2.81374181]
[1754072294364,0.1,3554.9,3553.2,17.496563]
[1754072294701,2.4577,3555.1,3553.5,3.0]
[1754072294905,0.1,3554.7,3554.4,2.81334268]
[1754072295223,0.1,3554.7,3554.0,3.0]
[1754072295520,0.1,3555.1,3554.0,3.0]
[1754072295680,0.5736,3555.6,3554.8,2.81306015]
[1754072295867,0.1,3555.6,3554.0,3.4538]
[1754072296068,0.1,3555.6,3554.3,2.81349351]
[1754072296309,0.1,3555.6,3554.1,0.88308]
[1754072296507,2.2333678,3555.9,3554.3,2.81349351]
[1754072296508,0.1,3555.0,3554.3,2.81349351]
[1754072296662,0.1,3555.0,3553.4,0.4538]
[1754072296663,0.1,3554.4,3553.5,2.81412691]
[1754072296868,0.1,3554.8,3553.7,3.0]
[1754072297068,0.03497795,3555.4,3553.9,3.0]
[1754072297069,0.1,3555.0,3553.9,3.0]
[1754072297329,0.1,3555.4,3554.3,2.81341669]
[1754072297464,0.2492678,3555.9,3554.3,0.4538]
[1754072297665,0.4483,3557.0,3555.3,3.0]
[1754072297863,0.4483,3557.0,3555.6,2.8124125]
[1754072297864,12.81149456,3556.9,3555.6,2.8124125]
[1754072298163,0.1,3556.7,3556.5,2.81173851]
[1754072298363,1.8035,3557.4,3556.7,2.81152025]
[1754072298633,1.8035,3558.2,3556.0,2.81214848]
[1754072298777,0.37897605,3558.1,3556.6,3.0]
[1754072298986,0.1,3558.1,3556.8,2.81151596]
[1754072299198,0.1,3557.7,3556.7,0.4538]
[1754072299371,0.1,3557.9,3556.7,0.4538]
[1754072299673,0.48327795,3558.9,3557.5,2.81090123]
[1754072299876,2.81034256,3558.3,3557.5,2.81090123]
[1754072300070,0.1,3557.7,3556.7,0.4538]
[1754072300265,0.1,3557.8,3556.6,3.0]
[1754072300499,0.1,3557.2,3556.1,5.7998]
[1754072300801,0.03497795,3557.7,3556.7,2.81154774]
[1754072300802,0.1,3556.9,3556.7,2.81154774]
[1754072301101,0.1,3557.3,3556.2,3.0]
[1754072301276,2.81056938,3558.0,3556.7,3.0]
[1754072301480,0.1,3557.7,3556.7,3.0]
[1754072301701,1.04063694,3557.9,3557.0,2.81135395]
[1754072301702,0.13497795,3557.8,3557.0,2.81135395]
[1754072302024,1.04063694,3557.9,3557.3,2.81106088]
[1754072302338,5.344,3558.2,3557.6,2.81082411]
[1754072302638,0.1,3558.5,3557.0,12.130607]
[1754072302789,0.1,3558.3,3558.2,2.81040975]
[1754072302993,0.1,3558.5,3558.4,0.1408]
[1754072303191,0.1,3558.9,3558.6,2.81004124]
[1754072303493,0.5483,3558.9,3558.7,0.1408]
[1754072303740,0.33580937,3558.8,3558.7,0.1408]
[1754072304036,0.33580937,3558.8,3557.6,3.0]
[1754072304037,2.8095412,3559.3,3557.6,3.0]
[1754072304262,0.1,3558.6,3558.5,2.81016]
[1754072304395,0.1408,3559.6,3557.8,3.0]
[1754072304396,0.5891,3559.9,3558.9,2.80977881]
[1754072304595,0.59191,3559.6,3559.1,2.80967898]
[1754072304897,0.59191,3559.6,3558.5,0.1408]
[1754072304898,0.59191,3559.6,3559.5,0.1408]
[1754072305290,12.074,3560.6,3559.5,0.1408]
[1754072305521,12.074,3560.6,3559.6,2.80930441]
[1754072305522,0.1,3559.7,3559.6,2.80930441]
[1754072305733,0.1,3559.7,3558.6,5.314]
[1754072305734,0.1,3559.7,3558.6,0.4538]
[1754072305900,0.1,3559.9,3559.6,0.1408]
[1754072306098,2.90922549,3559.7,3559.6,0.1408]
[1754072306314,0.1,3559.5,3557.8,0.4538]
[1754072306518,0.7556783,3559.7,3558.2,3.0]
[1754072306519,0.1,3559.2,3558.2,3.0]
[1754072306799,2.80913089,3559.9,3558.3,0.4538]
[1754072306996,0.4483,3560.3,3559.9,0.1408]
[1754072307319,2.2518,3560.2,3559.8,0.1408]
[1754072307530,0.1408,3560.5,3559.8,0.1408]
[1754072307873,0.1408,3560.5,3560.4,2.80867318]
[1754072308160,0.19371505,3561.7,3560.4,0.16888673]
[1754072308454,0.1,3561.1,3560.4,2.94940853]
[1754072308620,0.1,3560.9,3560.3,3.0]
[1754072308790,0.1,3560.8,3560.1,3.0]
[1754072308991,0.1,3560.9,3559.6,3.0]
[1754072309218,5.449,3561.5,3560.7,2.94916498]
[1754072309417,2.80822039,3561.0,3559.9,3.0]
[1754072309630,0.48327795,3561.4,3558.9,0.4538]
[1754072309631,0.1,3560.1,3558.9,0.4538]
[1754072309932,0.4483,3561.4,3559.0,0.48189778]
[1754072310248,0.03497795,3561.4,3559.1,5.316]
[1754072310390,0.19371505,3561.7,3559.5,2.80938334]
[1754072310590,0.03497795,3561.6,3560.2,3.0]
[1754072310827,0.03497795,3561.6,3559.8,3.0]
[1754072311030,3.00137509,3561.7,3560.9,2.80826741]
[1754072311231,3.00137509,3561.7,3560.1,3.0]
[1754072311232,2.80772686,3561.6,3560.1,3.0]
[1754072311457,0.33861994,3561.5,3559.6,0.4538]
[1754072311627,2.80812162,3561.1,3560.4,3.0]
[1754072311830,0.55,3560.9,3559.0,0.4538]
[1754072311998,0.55,3560.6,3558.5,0.4538]
[1754072312343,0.55,3560.6,3557.9,1.3322]
[1754072312344,0.55,3560.4,3558.6,2.81002318]
[1754072312497,0.4483,3560.3,3557.9,0.4538]
[1754072312817,2.80970282,3559.1,3557.9,1.02958]
[1754072313031,3.35931752,3559.6,3558.7,2.80993722]
[1754072313219,0.4483,3559.7,3558.0,4.854246]
[1754072313420,5.298,3559.6,3558.3,3.0]
[1754072313619,5.298,3559.6,3559.4,2.80945336]
[1754072313842,5.298,3559.6,3559.3,3.0]
[1754072314247,1.12217718,3560.2,3559.1,3.0]
[1754072314520,5.296,3560.3,3559.9,2.80899212]
[1754072314734,5.296,3560.3,3559.6,2.80925555]
[1754072314920,5.296,3560.3,3559.1,3.0]
[1754072314921,5.33097795,3560.3,3559.1,3.0]
[1754072315118,2.80939507,3559.5,3558.5,0.4538]